Cogmind - Beta 15 @@@ ROGUE MODE // 2025.10.03 @ 23:24:21 Player: Grey Result: Destroyed by G-47 Trooper with Particle Gun Performance ------------- Evolutions (2) 1000 Regions Visited (5) 1000 Robots Destroyed (10) 50 Value Destroyed (363) 363 Prototype IDs (23) 460 Alien Tech Used (0) 0 Bonus (300) 300 TOTAL SCORE: 3173 Bonus ------- Aligned with FarCom 300 Cogmind --------- Core Integrity 0/550 Matter 279/300 Energy 14/100 System Corruption 2% Temperature Cool (9) Movement Core (50) Location -8/Materials Parts ------- > --- POWER (1) -------- (None) > --- PROPULSION (5) --- (None) > --- UTILITY (3) ------ (None) > --- WEAPON (2) ------- Heavy EM Pulse Gun > --- INVENTORY (5) ---- AWS/Gauss Peak State ------------ > --- POWER ------------ Light Ion Engine > --- PROPULSION ------- Flight Unit Flight Unit > --- UTILITY ---------- Small Storage Unit > --- WEAPON ----------- AWS/Gauss > --- INVENTORY -------- Light Ion Engine Flight Unit Flight Unit Flight Unit Flight Unit Structural Scanner [Rating: 20] Favorites ----------- Power Light Ion Engine Engine Light Ion Engine Propulsion Flight Unit Leg Aluminum Leg Flight Unit Flight Unit Utility Small Storage Unit Device Structural Scanner Storage Small Storage Unit Protection Light Armor Plating Weapon AWS/Gauss Energy Gun Heavy EM Pulse Gun Ballistic Gun AWS/Gauss Impact Weapon Flail Build | -11 -10 -10 -10 -9 -8 ------- Run | Yrd Mat Min Exi Min Mat Slots Evolved 4 | . . . . . 4 Power . | . . . . . . Propulsion 3 | . . . . . 3 Utility 1 | . . . . . 1 Weapon . | . . . . . . Parts Attached 20 | 5 3 . 1 6 5 Power 3 | 1 . . . 1 1 Engine 3 | 1 . . . 1 1 Core . | . . . . . . Reactor . | . . . . . . Propulsion 9 | 2 2 . . 5 . Treads . | . . . . . . Leg 2 | 2 . . . . . Wheel . | . . . . . . Hover . | . . . . . . Flight 7 | . 2 . . 5 . Utility 3 | 1 1 . . . 1 Device 1 | . 1 . . . . Storage 1 | 1 . . . . . Processor . | . . . . . . Hackware . | . . . . . . Protection 1 | . . . . . 1 Artifact . | . . . . . . Weapon 5 | 1 . . 1 . 3 Energy Gun 1 | . . . . . 1 Energy Cannon . | . . . . . . Ballistic Gun 2 | 1 . . 1 . . Ballistic Cannon . | . . . . . . Launcher . | . . . . . . Special Weapon . | . . . . . . Impact Weapon 2 | . . . . . 2 Slashing Weapon . | . . . . . . Piercing Weapon . | . . . . . . Special Melee Weapon . | . . . . . . Unidentified Prototypes . | . . . . . . Parts Lost 11 | . . . . 6 5 Power 3 | . . . . 2 1 Propulsion 5 | . . . . 4 1 Utility 2 | . . . . . 2 Weapon 1 | . . . . . 1 Highest Loss Streak 6 | . . . . 6 2 To Critical Strikes . | . . . . . . Average Backups 4 | 1 1 4 6 6 1 Power . | . 1 1 1 . . Propulsion 2 | . . 2 4 5 . Utility . | . . 1 1 . . Weapon . | . . . . . 1 Tool/Special . | . . . . . . Unused Backups 4 | 2 . . 1 1 . Power . | . . . . . . Propulsion 1 | . . . . 1 . Utility 1 | . . . 1 . . Weapon 2 | 2 . . . . . Tool/Special . | . . . . . . Average Slot Usage (%) 58 | . 76 64 69 65 22 Engine 12 | . 14 14 14 12 6 Leg 1 | . 20 . . . . Flight 21 | . 7 28 28 26 6 Device 2 | . 9 . . 1 6 Storage 10 | . 14 14 14 12 . Ballistic Gun 9 | . 11 7 12 12 . Peak Build Rating 20 | 5 6 5 20 20 7 Average Rating 14 | 3 5 4 18 17 5 On Entrance 6 | . 5 4 4 20 3 Naked Turns 11 | . . . . 6 5 Heaviest Build 18 | 9 10 8 18 18 11 Greatest Support 20 | 20 20 8 8 8 4 Greatest Overweight (x) 3 | . 2 . 2 2 3 Average Overweight (x) 1 | . . . 1 1 1 Largest Inventory Capacity 8 | 8 8 8 8 8 5 Average Capacity 7 | 7 8 8 8 7 5 Most Carried 8 | 5 4 7 8 8 4 Average Carried 4 | 1 1 5 6 7 2 Final Capacity 8 | 8 8 8 8 5 5 Final Carried 7 | 1 4 7 6 2 2 Class Distribution -------------------- 100% | Mutant Dominant Class ---------------- Mutant | -10/Materials Mutant | -10/Mines Mutant | -10/Exiles Mutant | -9/Mines Mutant | -8/Materials Resources | -11 -10 -10 -10 -9 -8 ----------- Run | Yrd Mat Min Exi Min Mat Matter Collected 346 | 182 20 57 . 46 41 Remotely . | . . . . . . Salvage Created 486 | . . . . 193 293 Parts 16 | . . . . 11 5 Haulers Intercepted . | . . . . . . Recyclers Shooed . | . . . . . . Parts Field Recycled . | . . . . . . Retrieved Matter . | . . . . . . Parts Self-Destructed . | . . . . . . Prevented . | . . . . . . Kills | -11 -10 -10 -10 -9 -8 ------- Run | Yrd Mat Min Exi Min Mat Combat Hostiles Destroyed 15 | . . . . 9 6 Melee 2 | . . . . . 2 Guns 9 | . . . . 9 . Classes Destroyed 7 | . . . . 3 4 Swarmer 3 | . . . . 3 . Grunt 3 | . . . . . 3 Brawler 1 | . . . . . 1 Sentry 1 | . . . . . 1 Demolisher 1 | . . . . 1 . Hunter 1 | . . . . . 1 Assembled 5 | . . . . 5 . Best Kill Streak 6 | . . . . 6 4 Combat Bots Only 6 | . . . . 6 4 Max Kills in Single Turn 1 | . . . . 1 1 Gunslinging . | . . . . . . Exploded . | . . . . . . Melee 1 | . . . . . 1 Uniques/NPCs Destroyed . | . . . . . . Combat | -11 -10 -10 -10 -9 -8 -------- Run | Yrd Mat Min Exi Min Mat Hostile Shots Fired 119 | . . 4 . 24 91 Missed 32 | . . 3 . 7 22 Hits 87 | . . 1 . 17 69 Melee 8 | . . . . 1 7 Projectile 79 | . . 1 . 16 62 AOE 13 | . . . . 13 . Critical Strikes 4 | . . . . . 4 Damage Taken 1604 | . . 13 . 566 1025 Core 786 | . . . . 222 564 Absorbed by Shields . | . . . . . . Core Remaining (%) 55 | 100 . . . 11 . Volleys Fired 13 | . 1 4 . . 8 Largest 1 | . 1 1 . . 1 Hottest 45 | . 20 20 . . 45 Shots Fired 44 | . 1 4 . 31 8 Gun 44 | . 1 4 . 31 8 Cannon . | . . . . . . Launcher . | . . . . . . Special . | . . . . . . Kinetic 36 | . 1 4 . 31 . Thermal . | . . . . . . Explosive . | . . . . . . Electromagnetic 8 | . . . . . 8 Robot Hit Streak 5 | . . 1 . 5 3 Robot Miss Streak 2 | . 1 2 . 2 2 Penetration Max . | . . . . . . Secondary Targets . | . . . . . . Autonomous 32 | . . . . 32 . Shots Hit Robots 45 | . . 1 . 18 26 Core Hits 15 | . . . . 11 4 Critical Kills 1 | . . . . 1 . Critical Parts Destroyed 4 | . . . . . 4 Critical Strikes 7 | . . . . 1 6 Destroy 1 | . . . . 1 . Smash 6 | . . . . . 6 Melee Attacks 28 | . . . . . 28 Impact 28 | . . . . . 28 Slashing . | . . . . . . Piercing . | . . . . . . Sneak Attacks . | . . . . . . Combat Hostiles . | . . . . . . Follow-up Attacks . | . . . . . . Damage Inflicted 1324 | . . 6 . 573 745 Guns 642 | . . 6 . 556 80 Cannons . | . . . . . . Explosions . | . . . . . . Melee 665 | . . . . . 665 Ramming 17 | . . . . 17 . Kinetic 562 | . . 6 . 556 . Thermal . | . . . . . . Explosive . | . . . . . . Electromagnetic 80 | . . . . . 80 Impact 665 | . . . . . 665 Slashing . | . . . . . . Piercing . | . . . . . . Highest Corruption 2 | . . . . . 2 Average Corruption 2 | . . . . . 2 Corruption Purged . | . . . . . . Corruption Blocked . | . . . . . . Effects 1 | . . . . . 1 Parts Rejected 1 | . . . . . 1 Overload Shots . | . . . . . . Overflow Damage 193 | . . . . . 193 Projectiles . | . . . . . . Explosions . | . . . . . . Melee 193 | . . . . . 193 Knockbacks 2 | . . . . . 2 Impact 2 | . . . . . 2 Kinetic . | . . . . . . Secondary . | . . . . . . Self-Inflicted Damage 8 | . . . . 8 . Shots . | . . . . . . Rammed 2 | . . . . 2 . Targets Rammed 2 | . . . . 2 . Kicked . | . . . . . . Crushed . | . . . . . . Highest Temperature 18 | . . 2 . . 18 Average Temperature 6 | . . 2 . . 12 Received Heat Transfer 342 | . . . . . 342 Siege Activations . | . . . . . . Martial Activations . | . . . . . . Shielding Activations . | . . . . . . Robots Disrupted . | . . . . . . Combat Hostiles . | . . . . . . Robots Corrupted 4 | . . . . . 4 Combat Hostiles 4 | . . . . . 4 Parts Fried 7 | . . . . . 7 Impact Corruptions 6 | . . . . . 6 Robots Melted . | . . . . . . Combat Hostiles . | . . . . . . Parts Melted . | . . . . . . Heat Transferred . | . . . . . . Parts Sabotaged . | . . . . . . Parts Stolen . | . . . . . . Parts Stripped . | . . . . . . Power Chain Reactions . | . . . . . . Alert | -11 -10 -10 -10 -9 -8 ------- Run | Yrd Mat Min Exi Min Mat Maximum Alert Level . | . . . . . . Low Security (%) 100 | 100 100 100 . 100 100 Level 1 . | . . . . . . Level 2 . | . . . . . . Level 3 . | . . . . . . Level 4 . | . . . . . . Level 5 . | . . . . . . High Security . | . . . . . . Max Security . | . . . . . . Peak Influence 115 | . . . . 74 115 Initial . | . . . . . . Average 11 | . . . . 20 10 Influence Increases 297 | . . . . 122 175 Destroy 0b10 Robot/C 200 | . . . . 80 120 Destroy Leader 60 | . . . . 20 40 Destroy Structure 22 | . . . . 22 . Lose Combat Pursuer 15 | . . . . . 15 Influence Decreases 190 | . . . . 122 68 Time Decay 152 | . . . . 104 48 Lost Part 38 | . . . . 18 20 Squads Dispatched . | . . . . . . Investigation . | . . . . . . Extermination . | . . . . . . Reinforcement . | . . . . . . Assault . | . . . . . . Garrison . | . . . . . . Intercept . | . . . . . . Searches Triggered . | . . . . . . Construction Impeded . | . . . . . . Haulers Reinforced . | . . . . . . Active Scanning Responses . | . . . . . . Cargo Convoy Interrupts . | . . . . . . Stealth | -11 -10 -10 -10 -9 -8 --------- Run | Yrd Mat Min Exi Min Mat Distress Signals . | . . . . . . Communications Jammed . | . . . . . . Distress Signals . | . . . . . . Times Spotted 28 | . 2 3 . 14 9 Peak Tracking Total 8 | . 2 3 . 8 6 Tactical Retreats 2 | . . . . 1 1 Traps | -11 -10 -10 -10 -9 -8 ------- Run | Yrd Mat Min Exi Min Mat Traps Triggered . | . . . . . . Indirectly . | . . . . . . Trap Hack Attempts . | . . . . . . Triggered . | . . . . . . Disarmed . | . . . . . . Reprogrammed . | . . . . . . Reused . | . . . . . . Traps Extracted . | . . . . . . Installed . | . . . . . . Triggered . | . . . . . . Machines | -11 -10 -10 -10 -9 -8 ---------- Run | Yrd Mat Min Exi Min Mat Machines Disabled . | . . . . . . Max in Single Turn . | . . . . . . Machines Repaired . | . . . . . . Machines Dismantled . | . . . . . . Machines Sabotaged . | . . . . . . Overloaded Fab Kills . | . . . . . . Hacking | -11 -10 -10 -10 -9 -8 --------- Run | Yrd Mat Min Exi Min Mat Machines Accessed 5 | . . . 5 . . Terminals . | . . . . . . Fabricators . | . . . . . . Repair Stations . | . . . . . . Recycling Units . | . . . . . . Scanalyzers . | . . . . . . Garrison Access . | . . . . . . Total Hacks 50 | . . . 50 . . Successful 50 | . . . 50 . . Failed . | . . . . . . Catastrophic . | . . . . . . Database Lockouts . | . . . . . . Manual 7 | . . . 7 . . Terminals . | . . . . . . Fabricators . | . . . . . . Repair Stations . | . . . . . . Recycling Units . | . . . . . . Scanalyzers . | . . . . . . Garrison Access . | . . . . . . Terminal Hacks 50 | . . . 50 . . Record 49 | . . . 49 . . Proto ID Catalog 1 | . . . 1 . . Fabricator Hacks . | . . . . . . Repair Station Hacks . | . . . . . . Recycling Unit Hacks . | . . . . . . Scanalyzer . | . . . . . . Garrison Access Hacks . | . . . . . . Unauthorized Hacks . | . . . . . . Terminals . | . . . . . . Fabricators . | . . . . . . Repair Stations . | . . . . . . Recycling Units . | . . . . . . Scanalyzers . | . . . . . . Garrison Access . | . . . . . . Data Cores Recovered . | . . . . . . Used . | . . . . . . Hacking Detections . | . . . . . . Full Trace Events . | . . . . . . Feedback Events . | . . . . . . Feedback Blocked . | . . . . . . Robot Schematics Acquired . | . . . . . . Robots Built . | . . . . . . Authchips . | . . . . . . Time . | . . . . . . Total Robot Build Rating . | . . . . . . Part Schematics Acquired . | . . . . . . Parts Built . | . . . . . . Authchips . | . . . . . . Time . | . . . . . . Total Part Build Rating . | . . . . . . Parts Repaired . | . . . . . . Time . | . . . . . . Parts Recycled . | . . . . . . Recycled Matter . | . . . . . . Retrieved Matter . | . . . . . . Retrieved Components . | . . . . . . Parts Scanalyzed . | . . . . . . Part Schematics Acquired . | . . . . . . Parts Damaged . | . . . . . . Bothacking | -11 -10 -10 -10 -9 -8 ------------ Run | Yrd Mat Min Exi Min Mat Used RIF Installer . | . . . . . . Robots Hacked . | . . . . . . Non-combat . | . . . . . . Combat . | . . . . . . Robot Hacks Applied . | . . . . . . Relay Couplers Released . | . . . . . . Fabnet Peak Effective % . | . . . . . . Robots Rewired . | . . . . . . Allies Hacked . | . . . . . . Hacks Repelled . | . . . . . . Allies | -11 -10 -10 -10 -9 -8 -------- Run | Yrd Mat Min Exi Min Mat Total Allies . | . . . . . . Largest Group . | . . . . . . Highest-Rated Group . | . . . . . . Highest-Rated Ally . | . . . . . . Total Orders . | . . . . . . Ally Attacks . | . . . . . . Total Damage . | . . . . . . Kills . | . . . . . . Allies Corrupted . | . . . . . . Allies Melted . | . . . . . . Intel | -11 -10 -10 -10 -9 -8 ------- Run | Yrd Mat Min Exi Min Mat Active Infowar (turns) 477 | . 88 . . 28 361 Structural 477 | . 88 . . 28 361 Robot Analysis Total . | . . . . . . Derelict Logs Recovered . | . . . . . . Drone Launches . | . . . . . . Drone Recoveries . | . . . . . . Exploration | -11 -10 -10 -10 -9 -8 ------------- Run | Yrd Mat Min Exi Min Mat Turns Passed 2339 | 49 138 27 1280 312 533 Spaces Moved 1357 | 37 117 29 793 221 160 Core 58 | 11 . . . 7 40 Treads . | . . . . . . Legs 103 | 26 77 . . . . Wheels . | . . . . . . Hover . | . . . . . . Flight 1196 | . 40 29 793 214 120 Fastest Speed 37 | 50 37 37 37 37 40 Average Speed 142 | 99 94 37 156 133 154 Slowest Speed 200 | 120 200 37 197 197 200 Overloaded Moves . | . . . . . . Propulsion Burnouts . | . . . . . . Robots Hopped 1 | . 1 . . . . Potential Cave-ins . | . . . . . . Cave-ins Triggered . | . . . . . . Exploration Rate (%) 34 | 3 20 8 94 63 16 Regions Visited 5 Branch Regions 3 Pre-discovered Areas 1 | . . . 1 . . Known Exits Taken . | . . . . . . Unknown Exits Taken 5 | 1 1 1 1 1 . Scrap Searched 2 | . . . . 2 . Spaces Dug . | . . . . . . Terrain Destroyed 30 | . . . . 30 . Melee . | . . . . . . Projectile 30 | . . . . 30 . AOE . | . . . . . . Terrain Rammed . | . . . . . . Walls Destroyed . | . . . . . . Machines Disabled . | . . . . . . Actions | -11 -10 -10 -10 -9 -8 --------- Run | Yrd Mat Min Exi Min Mat Total 1702 | 50 143 41 837 237 394 Wait 248 | . 16 4 40 . 188 Move 1350 | 36 114 28 792 220 160 Hop 1 | . 1 . . . . Pick Up 24 | 7 4 3 2 3 5 Fast Attach 1 | 1 . . . . . Attach 18 | 4 2 1 1 5 5 Detach 3 | . 2 1 . . . Swap 3 | . 1 . . 2 . Drop 11 | 2 2 . 2 5 . Fire 13 | . 1 4 . . 8 Melee 28 | . . . . . 28 Ram 2 | . . . . 2 . Kick . | . . . . . . Crush . | . . . . . . Escape Stasis . | . . . . . . Rewire . | . . . . . . Trap . | . . . . . . Miscellaneous . | . . . . . . Route ------- -11/Scrapyard -10/Materials (discovered 2 exits: [*Min x2]) -10/Mines -10/Exiles (discovered 2 exits: [*Min x2]) -9/Mines -8/Materials History --------- Turn | Location | Event 9 | -11/Scrapyard | Discovered new exit (range 16) 50 | -11/Scrapyard | Entered Materials 60 | -10/Materials | Discovered new exit (range 16) 123 | -10/Materials | Discovered new exit (range 16) 127 | -10/Materials | Met 8R-AWN 188 | -10/Materials | Entered Mines 189 | -10/Mines | Followed 8R-AWN into the Mines 211 | -10/Mines | Discovered new exit (range 5) 215 | -10/Mines | Entered Exiles 225 | -10/Exiles | Welcomed by 8R-AWN 236 | -10/Exiles | Met EX-HEX 248 | -10/Exiles | Met EX-BIN 261 | -10/Exiles | Aligned with FarCom system 262 | -10/Exiles | Given EX-Vault access code 300 | -10/Exiles | Opened EX-Vault 302 | -10/Exiles | Found Prototype Device 303 | -10/Exiles | Identified Supersonic Drone Bay 306 | -10/Exiles | Found AWS/Gauss 328 | -10/Exiles | Build established: Mutant 347 | -10/Exiles | Warned to stay clear of 0b10 Research branches 400 | -10/Exiles | Met EX-DEC 434 | -10/Exiles | Learned location of Zion (-6) 556 | -10/Exiles | Discovered new exit (range 12) 905 | -10/Exiles | Visited The Gauntlet 1174 | -10/Exiles | Learned about 8R-AWN's background 1225 | -10/Exiles | Discovered new exit (range 14) 1495 | -10/Exiles | Left Exiles lab with AWS/Gauss 1495 | -10/Exiles | Entered Mines 1682 | -9/Mines | Assembled infested the area 1739 | -9/Mines | AWS/Gauss suddenly broke down 1773 | -9/Mines | Core integrity fell below 50% 1782 | -9/Mines | Core integrity fell below 20% 1803 | -9/Mines | Lost 6 parts (2p4n) 1804 | -9/Mines | Discovered new exit (range 5) 1807 | -9/Mines | Entered Materials 1807 | -8/Materials | Evolved 4 slots: Propulsion x3, Utility x1 2261 | -8/Materials | Core integrity fell below 50% 2292 | -8/Materials | Core integrity fell below 20% 2340 | -8/Materials | Destroyed by G-47 Trooper with Particle Gun Last Messages --------------- 02314_ G-50 Soldier system terminally corrupted. 02314_ Hvy. Laser fried. 02314_ Carbon-fiber Leg fried. 02314_ Lgt. Angular Momentum Engine fried. 02316_ G-47 Trooper suffers critical hit (Smash). 02316_ Destroyed Lgt. Nuclear Core. 02316_ G-47 Trooper system corrupted by crushing effect. 02316_ Aluminum Leg fried. 02316_ Particle Gun fried. 02316_ G-47 Trooper destroyed. 02319_ Destroyed Imp. Heat Sink. 02319_ G-47 Trooper system corrupted by crushing effect. 02319_ G-47 Trooper knocked back. 02321_ System corrupted: Hvy. Mace rejected. 02327_ Critical hit (Burn: +37). 02338_ G-47 Trooper IFF system glitched. 02339_ R-06 Scavenger collects Hvy. Mace. Map ----- +----------------------------------------------------+ | ????????????????????????????????????## # # | | ????????????????????????????????????## + + | | ????????????????????????????????????##]] # # | | ?????????????????????? ########?????##]] # # | | ?????????????????????? ########?????##]] # ## | | ?????????????????????? # ?????## # # | | ?????????????????????? # ? ##??## ? # # | | ?????????????????????? # ! ##??## ? # # | | ?????????????????????? # "" ##??######### # | | ?????????????????????? # "" ##??######### # | | ??????????????????????## T" ##???????##"" + | | ??????????????????????## "" ##???????##"Y # | | ??????????????????????## "" ##???????##"" # | | ???????????????????????? ##???????#### # | | ????????????????????????####+################ # | | ????????????????????????## ############## # | | ????????????????????????## ## | | ????????????????????????## w ## | | ????????????????????????## ## | | ????????????????????????## ##########+######## | | ???????????????????######## ######## #### | | ???????????????????# # ###???## ##?? | | ???????????????????# #% ##????## ##?? | | ???????????????????#[[ %r% ##????## ##?? | | ???????????????????#[! gg# % ##????## ##?? | | ???????????????????# @# ##????## ##?? | | ???????????????????##### ## ######## ##?? | | ????????????????????########/######### ##?? | | ????????????????????"# ### ##?? | | ????????????????????"# #############?? | | ????????????????????"# #############?? | | ????????????????????"# ##????????????? | | ????????????????????"# ##????????????? | | ????????????????????## [ !##????????????? | | ????????????????????#################????????????? | | ????????????????????# ########????????????? | | ?????????????????????????????????????????????????? | | ?????????????????????????????????????????????????? | | ?????????????????????????????????????????????????? | | ?????????????????Y???????????????????????????????? | | ?????????????????????????????????????????????????? | | ?????????????????????????????????????????????????? | | ?????????????????????????????????????????????????? | | ?????????????????????????????????????????????????? | | ?????????????????????????????????????????????????? | | ?????????????????????????????????????????????????? | | ?????????????????????????????????????????????????? | | ?????????????????????????????????????????????????? | | ?????????????????????????????????????????????????? | | ?????????????????????????????????????????????????? | +----------------------------------------------------+ Best States ------------- Heat Dissipation 31 Energy Generation 14 Energy Capacity 275 Matter Stores 300 Matter Capacity 300 Sight Range 16 Terrain Scan Density 10 Armor Coverage 150 Evasion (%) 62 Item Schematics ----------------- None Robot Schematics ------------------ None Fabricated ------------ Nothing Repaired ---------- Nothing Alien Tech Used ----------------- None Achievements -------------- None Challenges ------------ None Game ------ Seed SpreadFieldDrive Manual? 0 Play Time 00:38:32 Cumulative 12.2 hours Start 2025.10.03 @ 22:32:54 End 2025.10.03 @ 23:24:21 Sessions 1 Manual Loads 0 Difficulty Rogue Special Mode None Game No. 11 Rogue 11 Adventurer 0 Explorer 0 Win Type - Total 0 Types 0/0/0/0/0/0/0/0/0/0 Lore% 11 Gallery% 13 Achievement% 15 Wizard Run 0 Options --------- Layout 1 ASCII 0 Keyboard 0 Movement Mouse Keybinds 0 Fullscreen 1 Font 32/SmallcapsGlow Map View 50x35 Zoom Use 0% Tactical HUD 1 Map Filters NONE Filters NONE Steam 1 RUN: e8066400-111e-4825-b680-388cd6b2b579